bitfinex-derivatives/quotes_ETHF0:USTF0_20250804
["timestamp","ask_amount","ask_price","bid_price","bid_amount"]
[1754325401525,22.1371,3670.0,3669.9,1.3039]
[1754325401720,22.1371,3670.0,3669.9,1.1906]
[1754325402720,25.3449,3670.0,3669.9,1.1906]
[1754325403025,25.3449,3670.0,3669.2,0.7176]
[1754325403026,1.2581,3669.9,3669.2,0.7176]
[1754325403229,2.5698,3669.3,3669.2,2.03223]
[1754325403430,2.5698,3669.3,3669.2,1.73563]
[1754325403727,2.5698,3669.3,3669.2,2.03353]
[1754325403917,2.097,3669.6,3669.5,2.03349]
[1754325404317,2.5698,3669.6,3669.5,2.03349]
[1754325405028,1.3117,3669.6,3669.1,0.1106]
[1754325405224,2.027,3669.5,3669.4,0.54499]
[1754325405532,3.2851,3669.5,3669.4,0.54499]
[1754325405728,3.2851,3669.5,3669.3,0.545]
[1754325405923,3.2851,3669.4,3669.3,0.545]
[1754325406732,3.2851,3669.4,3669.3,2.0232]
[1754325406932,3.2851,3669.4,3669.3,1.7356]
[1754325407228,3.2851,3669.4,3669.3,0.545]
[1754325407432,3.2851,3669.4,3669.3,1.7356]
[1754325408020,3.2851,3669.4,3669.3,2.0232]
[1754325408230,3.2078,3670.0,3669.7,1.1906]
[1754325408231,2.7597,3669.8,3669.7,1.1906]
[1754325408430,21.6077,3669.8,3669.7,1.1906]
[1754325408630,20.70465,3669.8,3669.6,0.54496]
[1754325408931,2.8123,3669.5,3669.4,1.01799]
[1754325409127,3.2851,3669.5,3669.4,1.73559]
[1754325409533,3.2851,3669.5,3669.4,0.54499]
[1754325409931,3.2851,3669.5,3669.4,1.01799]
[1754325410121,1.5716,3669.5,3669.4,1.73559]
[1754325410327,1.5716,3669.5,3669.4,2.02319]
[1754325410524,0.5254,3669.8,3669.4,2.02319]
[1754325410730,2.5698,3669.8,3669.7,2.02315]
[1754325411030,1.5716,3669.8,3669.7,2.02315]
[1754325411429,0.7327,3669.8,3669.7,2.02315]
[1754325412135,23.6264,3670.0,3669.9,2.02313]
[1754325412537,21.4168,3670.0,3669.9,2.02313]
[1754325413235,22.1321,3670.0,3669.9,0.54493]
[1754325413431,22.1321,3670.0,3669.9,1.73553]
[1754325413633,21.4168,3670.0,3669.9,2.02313]
[1754325414335,6.4929,3670.4,3670.3,1.73547]
[1754325414529,25.3379,3670.4,3670.3,1.01787]
[1754325415030,25.3379,3670.4,3670.3,0.54487]
[1754325415330,25.3379,3670.4,3670.3,1.73547]
[1754325415731,25.3379,3670.4,3670.3,1.01787]
[1754325416436,25.3379,3670.4,3670.3,1.73547]
[1754325416624,24.6226,3670.4,3670.3,2.02307]
[1754325417635,25.3379,3670.4,3670.3,2.02307]
[1754325418133,3.2851,3670.2,3670.1,1.0179]
[1754325418631,3.2851,3670.2,3670.1,0.5449]
[1754325419931,3.2851,3669.9,3669.8,0.54494]
[1754325420130,22.1271,3669.9,3669.8,0.54494]
[1754325420641,0.8389,3669.3,3669.2,0.8484]
[1754325420940,21.4108,3669.7,3669.6,0.8484]
[1754325421133,21.4108,3669.7,3669.6,2.65657]
[1754325421326,22.1261,3669.7,3669.6,2.65657]
[1754325421832,18.841,3669.7,3669.6,2.65657]
[1754325422038,21.6007,3669.7,3669.6,2.65657]
[1754325422238,3.2851,3669.7,3669.6,2.65657]
[1754325423738,1.1932,3669.7,3669.6,2.65657]
[1754325424042,5.2522,3670.0,3669.9,2.65653]
[1754325424229,24.6176,3670.0,3669.9,2.65653]
[1754325424435,1.3117,3669.3,3669.2,2.65663]
[1754325424634,3.2851,3669.3,3669.2,1.73563]
[1754325425039,2.027,3669.3,3668.6,3.2078]
[1754325425238,1.2581,3668.7,3668.5,0.54512]
[1754325425540,3.2851,3668.6,3668.5,2.65672]
[1754325426244,3.2851,3668.6,3668.5,2.11112]
[1754325426844,18.839,3668.8,3668.5,2.1116]
[1754325427044,23.3585,3669.1,3669.0,1.93906]
[1754325427243,4.5195,3669.1,3669.0,2.65666]
[1754325427443,4.0467,3669.1,3669.0,2.65666]
[1754325427646,4.7794,3669.1,3669.0,2.65666]
[1754325428247,1.5716,3669.1,3669.0,2.65666]
[1754325428444,1.1932,3669.1,3669.0,2.65666]
[1754325428750,2.0444,3669.4,3669.3,1.394]
[1754325428949,2.0444,3669.4,3669.3,2.1116]
[1754325429145,3.2851,3669.4,3669.3,2.1116]
[1754325429342,3.2851,3669.3,3669.2,1.26263]
[1754325429745,3.2851,3669.3,3669.2,1.73563]
[1754325430148,3.2851,3669.3,3669.2,0.473]
[1754325430346,3.2966,3668.9,3668.8,1.2003]
[1754325430552,3.2966,3668.9,3668.8,0.4804]
[1754325430953,1.9462,3668.8,3668.7,1.7454]
[1754325431251,1.3504,3668.8,3668.6,0.54511]
[1754325431449,0.54507,3669.0,3668.6,0.54511]
[1754325431450,3.2966,3668.7,3668.6,0.54511]
[1754325431951,3.2966,3668.7,3668.6,1.74541]
[1754325432154,3.2966,3668.7,3668.6,2.64361]
[1754325432349,2.0515,3668.7,3668.6,2.64361]
[1754325432551,2.6137,3668.7,3668.6,2.64361]
[1754325432853,3.2966,3668.7,3668.6,2.64361]
[1754325433451,18.839,3668.8,3668.6,2.64361]
[1754325433648,2.6137,3669.0,3668.9,2.64357]
[1754325433848,20.8905,3669.0,3668.9,2.64357]
[1754325434749,21.4527,3669.0,3668.9,2.64357]
[1754325435651,20.8905,3669.0,3668.9,2.64357]
[1754325435853,1.2022,3669.0,3668.9,2.64357]
[1754325436051,19.3411,3669.0,3668.9,2.64357]
[1754325436357,1.2022,3669.3,3669.2,2.64353]
[1754325436548,20.0412,3669.3,3669.2,2.64353]
[1754325436747,20.3974,3669.3,3669.2,2.64353]
[1754325436946,0.7011,3669.7,3669.5,1.39758]
[1754325437251,3.2966,3669.7,3669.6,1.5725]
[1754325437448,20.8905,3669.7,3669.6,1.2003]
[1754325437659,21.4527,3669.7,3669.6,2.0985]
[1754325437853,5.2411,3670.2,3670.1,0.5449]
[1754325438154,24.0801,3670.2,3670.1,1.0253]
[1754325438552,22.1356,3670.2,3670.1,0.5449]
[1754325438947,25.3434,3670.2,3670.1,0.5449]
[1754325441147,25.3434,3670.2,3670.1,1.0253]
[1754325441351,25.3434,3670.2,3670.1,1.7452]
[1754325441655,5.8215,3670.2,3670.1,2.6434]
[1754325441851,24.6585,3670.2,3670.1,2.6434]
[1754325442050,25.3414,3670.2,3670.1,2.6434]
[1754325442251,22.1336,3670.2,3670.1,2.6434]
[1754325442851,4.41,3670.6,3670.5,0.54484]
[1754325443061,25.3404,3670.6,3670.5,1.74514]
[1754325443254,25.3404,3670.6,3670.5,0.54484]
[1754325446055,22.0438,3670.6,3670.5,0.54484]
[1754325446265,25.3404,3670.6,3670.5,1.74514]
[1754325446558,25.3404,3670.6,3670.5,0.54484]
[1754325447152,0.54484,3670.5,3670.4,0.54484]
[1754325447366,3.2966,3670.5,3670.4,0.54484]
[1754325448555,3.2966,3670.3,3670.2,0.54487]
[1754325448855,3.2966,3670.3,3669.6,1.36241]
[1754325448856,1.04598,3670.2,3670.1,0.54489]
[1754325449057,2.0333,3669.9,3669.8,1.2003]
[1754325449268,21.4467,3669.9,3669.8,2.64344]
[1754325449554,2.6137,3670.1,3670.0,1.44311]
[1754325449858,3.2078,3670.2,3670.0,1.92351]
[1754325450049,3.2078,3670.2,3670.1,2.0985]
[1754325450250,22.0408,3670.2,3670.1,2.0985]
[1754325451156,18.833,3670.2,3670.1,2.0985]
[1754325451357,19.5341,3670.2,3670.1,2.0985]
[1754325451856,18.833,3670.2,3670.1,2.0985]
[1754325452250,20.3914,3670.2,3670.1,2.0985]
[1754325452455,20.0352,3670.2,3670.1,2.0985]
[1754325452859,21.4467,3670.2,3670.1,2.0985]
[1754325453164,22.1296,3670.2,3670.1,2.0985]
[1754325454760,22.1296,3670.2,3670.1,1.2003]
[1754325455061,22.1296,3670.2,3670.0,0.54491]
[1754325455062,3.2966,3669.7,3669.6,0.54496]
[1754325455266,22.1266,3669.7,3669.6,0.54496]
[1754325455562,22.1266,3669.7,3669.6,1.02536]
[1754325455864,22.1266,3669.7,3669.6,1.74526]
[1754325456058,4.41,3670.0,3669.9,2.64343]
[1754325456263,25.3344,3670.0,3669.9,2.64343]
[1754325456667,22.1266,3670.0,3669.9,2.64343]
[1754325456967,21.4437,3670.0,3669.9,2.64343]
[1754325457265,20.3874,3670.0,3669.9,2.64343]
[1754325457458,2.6137,3670.3,3670.2,1.39748]
[1754325457767,21.4427,3670.3,3670.2,2.64338]
[1754325458660,20.2405,3670.3,3670.2,2.64338]
[1754325458959,21.4427,3670.3,3670.2,2.64338]
[1754325459158,22.1256,3670.3,3670.2,2.64338]
[1754325459866,22.1256,3670.3,3670.2,1.74518]
[1754325460469,3.2966,3670.3,3670.2,1.74518]
[1754325460672,22.1256,3670.3,3670.2,1.74518]
[1754325461572,22.1256,3670.3,3670.2,2.63428]
[1754325461765,22.1256,3670.3,3670.2,0.54488]
[1754325462269,22.1256,3670.3,3670.2,1.70988]
[1754325462965,1.3504,3670.3,3670.1,0.54489]
[1754325463271,22.0078,3670.2,3670.1,0.54489]
[1754325463570,22.0078,3670.2,3670.1,1.70989]
[1754325465172,22.0078,3670.2,3670.1,0.54489]
[1754325466073,21.2779,3670.2,3670.1,2.57899]
[1754325466271,22.0078,3670.2,3670.1,2.06209]
[1754325466466,22.0078,3670.2,3670.1,1.70989]
[1754325466667,22.0078,3670.2,3670.1,0.54489]
[1754325467069,22.0078,3670.2,3670.1,2.06209]
[1754325467264,22.0078,3670.2,3670.1,2.57899]
[1754325467669,22.0078,3670.2,3670.1,0.54489]
[1754325469670,22.70423356,3670.2,3670.1,0.54489]
[1754325469876,3.1808,3670.1,3670.0,0.5449]
[1754325470068,6.3886,3670.1,3670.0,0.5449]
[1754325471676,1.9428,3670.1,3670.0,2.579]
[1754325471877,21.2749,3670.1,3670.0,0.5449]
[1754325472180,21.2749,3670.1,3670.0,2.579]
[1754325472573,20.7668,3670.1,3670.0,2.579]
[1754325475081,21.2749,3670.1,3670.0,2.579]
[1754325475675,22.0048,3670.1,3670.0,2.579]
[1754325476580,22.0048,3670.1,3670.0,0.5449]
[1754325477181,22.0048,3670.1,3670.0,1.7099]
[1754325477880,22.0048,3670.1,3670.0,2.2268]
[1754325478482,22.0048,3670.1,3670.0,0.5449]
[1754325478683,22.0048,3670.1,3670.0,1.7099]
[1754325478884,19.9699,3670.1,3670.0,2.579]
[1754325479180,20.3036,3670.1,3670.0,2.579]
[1754325479381,21.2719,3670.1,3670.0,2.579]
[1754325480185,22.0018,3670.1,3670.0,1.7099]
[1754325481877,22.0018,3670.1,3670.0,2.579]
[1754325482274,22.0018,3670.1,3670.0,1.7099]
[1754325482483,22.0018,3670.1,3670.0,1.70991]
[1754325482680,3.1808,3669.8,3669.7,0.54496]
[1754325482885,21.9998,3669.8,3669.7,0.54496]
[1754325483187,21.9998,3669.8,3669.7,2.57906]
[1754325485188,20.3016,3669.8,3669.7,2.57906]
[1754325485386,18.819,3669.8,3669.7,2.57906]
[1754325486290,21.2699,3669.8,3669.7,2.57906]
[1754325486588,21.9998,3669.8,3669.7,2.57906]
[1754325486886,20.3016,3669.8,3669.7,2.57906]
[1754325487087,19.5185,3669.8,3669.7,2.57906]
[1754325487487,20.8087,3669.8,3669.7,2.57906]
[1754325487688,21.9988,3669.8,3669.7,2.57906]
[1754325487887,21.2689,3669.8,3669.7,2.57906]
[1754325488788,21.9988,3669.8,3669.7,2.57906]
[1754325490383,21.2689,3669.8,3669.7,2.57906]
[1754325490583,21.9787,3669.8,3669.7,2.57906]
[1754325491881,21.2689,3669.8,3669.7,2.22686]
[1754325492082,21.9787,3669.8,3669.7,1.73636]
[1754325493282,21.9787,3669.8,3669.7,1.1914]
[1754325495289,21.9787,3669.8,3669.7,1.7266]
[1754325495592,21.9787,3669.8,3669.7,2.0779]
[1754325496684,22.52365,3669.8,3669.6,0.54497]
[1754325496889,1.80336,3669.7,3669.5,0.54498]
[1754325497090,21.9889,3669.6,3669.5,0.54498]
[1754325497986,21.9889,3669.6,3669.5,1.73638]
[1754325498187,21.9889,3669.6,3669.5,2.62288]
[1754325498589,21.9889,3669.6,3669.5,1.73638]
[1754325498989,21.9889,3669.6,3669.5,2.27158]
[1754325499291,21.9889,3669.6,3669.5,1.73638]
[1754325499491,3.1759,3669.6,3669.5,1.1914]
[1754325499792,21.9879,3669.6,3669.5,1.1914]
[1754325499991,0.7024,3669.5,3669.1,0.7255]
[1754325500192,0.7024,3669.5,3669.1,1.36224]
[1754325500193,2.4661,3669.2,3669.1,1.36224]
[1754325500494,21.9869,3669.2,3669.1,1.36224]
[1754325500795,21.9869,3669.2,3669.1,2.62294]
[1754325501491,21.2771,3669.2,3669.1,2.62294]
[1754325502091,21.9869,3669.2,3669.1,1.1914]
[1754325503194,21.9869,3669.2,3669.1,2.0779]
[1754325504294,21.9869,3669.2,3668.8,1.73649]
[1754325504295,1.2584,3668.9,3668.8,1.73649]
[1754325504494,21.9859,3668.9,3668.8,1.73649]
[1754325504693,2.4661,3668.8,3668.3,0.25621224]
[1754325504997,1.9608,3668.2,3668.1,1.89759]
[1754325505292,1.9608,3668.2,3668.0,3.6737]
[1754325505293,1.6098,3668.1,3668.0,3.6737]
[1754325505596,2.4661,3668.1,3668.0,2.0779]
[1754325505895,1.5162,3668.1,3668.0,2.0779]
[1754325506195,1.5162,3668.1,3668.0,2.09678776]
[1754325506390,0.7024,3668.1,3668.0,2.09678776]
[1754325506590,0.9681,3668.4,3668.3,2.08786]
[1754325506788,19.2718,3668.4,3668.3,2.62306]
[1754325506985,5.6739,3668.8,3668.7,1.3524]
[1754325507190,19.161,3668.8,3668.7,2.64188776]
[1754325507594,19.8634,3668.8,3668.7,2.64188776]
[1754325507795,5.6739,3669.4,3669.3,1.5427]
[1754325507992,3.1759,3668.9,3668.8,1.1914]
[1754325508196,2.4661,3668.4,3668.3,2.0779]
[1754325508390,1.1652,3668.4,3668.3,2.62306]
[1754325508596,0.7024,3668.4,3668.3,2.62306]
[1754325509098,2.4661,3668.4,3668.3,2.62306]
[1754325510400,1.1652,3668.4,3668.3,2.62306]
[1754325510695,1.6098,3668.4,3668.3,2.62306]
[1754325510903,3.1759,3668.4,3668.3,2.62306]
[1754325511201,3.1759,3668.3,3668.2,1.1914]
[1754325511404,21.2835,3668.3,3668.2,2.0779]
[1754325511596,3.2078,3668.5,3668.4,0.8172]
[1754325511899,19.9742,3668.5,3668.4,2.0779]
[1754325512201,20.3252,3668.5,3668.4,2.0779]
[1754325512700,0.9681,3668.7,3668.6,0.8172]
[1754325512899,0.9681,3668.7,3668.3,0.54516]
[1754325512900,4.373,3668.9,3668.8,1.3524]
[1754325513100,4.373,3668.9,3668.8,2.0779]
[1754325513301,23.183,3668.9,3668.8,2.0779]
[1754325513502,24.4839,3668.9,3668.8,2.0779]
[1754325514200,25.1937,3668.9,3668.8,2.0779]
[1754325514593,24.4839,3668.9,3668.8,2.0779]
[1754325514800,21.2761,3668.9,3668.8,2.0779]
[1754325515005,3.1759,3668.9,3668.8,0.4659]
[1754325515302,3.2078,3669.9,3669.8,1.01084]
[1754325515492,6.3837,3669.9,3669.8,1.01084]
[1754325517099,5.8784,3669.9,3669.8,1.59524]
[1754325517303,3.2078,3669.9,3669.8,1.59524]
[1754325517702,3.2078,3670.4,3670.3,1.01077]
[1754325517899,4.971,3670.4,3670.3,1.59517]
[1754325518802,5.8784,3670.4,3670.3,1.59517]
[1754325519199,5.4156,3670.4,3670.3,1.59517]
[1754325519399,3.2078,3670.4,3670.3,1.59517]
[1754325519802,3.9176,3670.4,3670.3,1.59517]
[1754325520003,3.2078,3670.4,3670.3,1.59517]
[1754325520203,5.4156,3670.4,3670.3,1.59517]
[1754325520406,5.8784,3670.4,3670.3,1.59517]
[1754325520608,6.3871,3670.4,3670.3,1.01077]
[1754325521296,6.3871,3670.4,3670.3,0.4659]
[1754325527510,0.5449,3670.1,3669.6,1.36243]
[1754325527714,1.3215,3669.7,3669.6,1.03437]
[1754325528011,2.7423,3669.7,3669.6,1.67097]
[1754325528203,2.7423,3669.9,3669.8,1.03434]
[1754325528411,3.251,3669.9,3669.8,1.03434]
[1754325529009,3.251,3669.9,3669.8,1.67094]
[1754325529614,3.251,3669.9,3669.8,1.03434]
[1754325529810,1.7974,3669.4,3669.3,1.92468413]
[1754325531310,3.251,3669.9,3669.8,1.03433]
[1754325532008,2.7423,3669.9,3669.8,1.67093]
[1754325532213,3.251,3669.9,3669.8,1.67093]
[1754325532416,3.251,3669.9,3669.8,0.54493]
[1754325533014,3.251,3669.9,3669.8,1.03433]
[1754325533309,3.9323,3670.0,3669.9,0.6366]
[1754325533510,3.9323,3670.0,3669.9,1.126]
[1754325533917,4.6286,3670.0,3669.9,1.126]
[1754325534213,3.2078,3670.0,3669.9,1.126]
[1754325534414,20.6262,3670.2,3670.1,0.4894]
[1754325534815,1.8302,3670.2,3670.1,1.126]
[1754325535013,5.2538,3670.4,3670.3,0.4894]
[1754325535214,5.9501,3670.4,3670.3,1.126]
[1754325535409,3.9323,3671.2,3671.0,0.54476]
[1754325535610,3.251,3671.4,3671.3,1.03412]
[1754325536217,2.7423,3671.4,3671.3,1.03412]
[1754325536417,2.7423,3671.4,3671.3,1.67072]
[1754325536804,3.251,3671.4,3671.3,1.67072]
[1754325537006,3.251,3671.4,3671.3,1.03412]
[1754325537211,3.251,3671.4,3671.3,0.54472]
[1754325537813,3.251,3671.4,3671.2,0.54472]
[1754325538013,1.4536,3670.9,3670.8,0.4894]
[1754325538219,0.9677,3670.9,3670.8,1.126]
[1754325538415,0.8356,3670.9,3670.8,1.67079]
[1754325538615,2.0688,3670.9,3670.8,1.03419]
[1754325540316,3.2078,3671.2,3671.1,1.67075]
[1754325540710,4.441,3671.6,3671.5,0.54469]
[1754325540910,4.9,3672.0,3671.9,0.54463]
[1754325541222,2.0688,3671.9,3671.8,0.54464]
[1754325541414,2.0688,3671.2,3671.1,1.67075]
[1754325541615,2.0688,3671.2,3671.1,1.03415]
[1754325542516,2.0688,3671.2,3671.1,1.67075]
[1754325542722,1.5601,3671.2,3671.1,1.67075]
[1754325542917,1.1011,3671.2,3671.1,1.67075]
[1754325543611,0.7245,3671.2,3671.1,1.67075]
[1754325544022,1.1011,3671.2,3671.1,1.67075]
[1754325544416,1.7974,3671.2,3671.1,1.67075]
[1754325545411,1.7974,3671.2,3671.1,1.03415]
[1754325545616,3.251,3671.2,3671.1,1.03415]
[1754325546216,2.2833,3671.2,3671.1,1.65585]
[1754325547621,5.7625,3671.7,3671.6,1.03407]
[1754325548022,5.7625,3671.7,3671.5,0.54468]
[1754325548223,0.54462,3672.0,3671.9,0.54462]
[1754325548224,1.5601,3672.0,3671.9,0.54462]
[1754325548417,3.251,3671.9,3671.8,0.54464]
[1754325549225,3.251,3671.9,3671.8,1.03404]
[1754325550226,3.251,3671.9,3671.8,0.54464]
[1754325552124,2.0688,3671.9,3671.8,0.54464]
[1754325552327,3.2258,3671.9,3671.8,0.54464]
[1754325552827,1.3212,3671.9,3671.7,0.54465]
[1754325553032,2.7295,3671.8,3671.7,0.54465]
[1754325553230,3.2117,3671.8,3671.7,0.54465]
[1754325553726,2.6856,3671.8,3671.7,0.54465]
[1754325553934,3.2117,3671.8,3671.7,1.00605]
[1754325555635,2.0547,3671.8,3671.7,1.00605]
[1754325555834,3.2117,3671.8,3671.7,1.00605]
[1754325558237,3.2117,3671.2,3671.1,1.25277783]
[1754325558834,3.2117,3671.2,3671.1,1.00615]
[1754325559337,2.6856,3671.2,3671.1,1.62185]
[1754325559630,1.3117,3671.5,3671.4,1.0061]
[1754325559833,3.2117,3671.8,3671.7,1.00606]
[1754325560437,3.2117,3671.8,3671.7,0.4614]
[1754325560638,0.9678,3671.6,3671.5,0.54468]
[1754325560839,3.2117,3671.6,3671.5,0.54468]
[1754325561031,3.2117,3671.5,3671.4,0.54469]
[1754325562534,3.2117,3671.5,3671.4,1.00609]
[1754325563842,3.2117,3671.5,3671.4,0.54469]
[1754325564143,3.2117,3671.5,3671.4,1.00609]
[1754325566335,3.2117,3671.5,3671.4,0.54469]
[1754325567030,0.54478,3670.9,3670.6,0.54481]
[1754325567241,2.5092,3670.5,3670.4,0.81111147]
[1754325567738,3.2117,3670.5,3670.4,0.54485]
[1754325568343,3.2117,3670.2,3670.1,0.54489]
[1754325569140,3.2117,3670.1,3670.0,0.5449]
[1754325571248,3.2117,3670.1,3670.0,1.0063]
[1754325571642,3.2117,3670.1,3670.0,0.4614]
[1754325571950,3.2117,3670.0,3669.9,0.54492]
[1754325572438,3.2117,3670.0,3669.9,1.00632]
[1754325573347,3.2117,3670.0,3669.9,0.54492]
[1754325573643,2.0142,3669.7,3669.6,2.42255725]
[1754325573851,3.2117,3669.7,3669.6,2.96751725]
[1754325574052,6.4195,3669.7,3669.6,2.42255725]
[1754325574353,6.4195,3669.7,3669.5,2.96753725]
[1754325574354,3.2117,3669.6,3669.5,2.96753725]
[1754325574543,3.2117,3669.6,3669.5,3.42893725]
[1754325575049,3.2117,3669.6,3669.5,1.00638]
[1754325575246,3.2117,3669.6,3669.5,0.54498]
[1754325576148,1.3117,3669.1,3669.0,3.39158016]
[1754325576344,1.3117,3669.1,3668.8,3.39158016]
[1754325576345,2.3417,3668.9,3668.8,3.39158016]
[1754325576550,3.2117,3668.9,3668.8,3.93666016]
[1754325576849,3.2117,3668.9,3668.8,0.54508]
[1754325577345,3.2117,3668.7,3668.6,3.93669016]
[1754325577650,6.4195,3668.7,3668.6,0.54511]
[1754325578339,6.4195,3668.7,3668.6,2.32711]
[1754325578544,6.4195,3668.7,3668.6,0.54511]
[1754325578749,6.4195,3668.7,3668.6,1.00651]
[1754325579342,6.4195,3668.7,3668.6,1.34341]
[1754325579540,6.4195,3668.7,3668.6,1.87131]
[1754325580852,6.4195,3668.7,3668.6,0.54511]
[1754325581244,3.1551,3668.6,3668.5,0.54513]
[1754325581850,1.1801,3669.0,3668.9,0.54507]
[1754325582152,3.1551,3669.0,3668.9,3.73137]
[1754325582454,1.7904,3669.3,3669.2,1.2764]
[1754325582747,3.2078,3669.5,3669.4,1.9837]
[1754325582948,1.1946,3670.0,3669.9,1.2764]
[1754325583253,1.1946,3670.0,3669.9,3.02393]
[1754325583254,3.1551,3670.0,3669.9,3.02393]
[1754325583451,3.1551,3670.0,3669.9,3.73123]
[1754325583748,2.6501,3670.0,3669.9,3.73123]
[1754325584048,2.48,3670.3,3670.2,1.82128]
[1754325584250,3.1551,3670.3,3670.2,3.73118]
[1754325584648,3.2078,3670.6,3669.2,3.2078]
[1754325584850,2.4655,3669.2,3668.6,1.2026]
[1754325585050,2.4655,3668.7,3668.6,1.00271]
[1754325585253,3.2078,3669.0,3668.9,0.54507]
[1754325585453,5.9987,3669.0,3668.9,3.73137]
[1754325585660,0.6751,3668.9,3668.4,0.5097]
[1754325585846,1.2854,3668.5,3668.4,2.33124]
[1754325586151,3.1551,3668.5,3668.4,2.33124]
[1754325586354,3.1551,3668.5,3668.4,1.7861]
[1754325586948,3.1551,3668.5,3668.4,3.1863]
[1754325588249,2.1981,3668.5,3668.4,3.1863]
[1754325588454,3.1551,3668.8,3668.7,1.7861]
[1754325588653,3.1551,3668.8,3668.7,2.479]
[1754325588851,3.1551,3668.8,3668.7,1.7861]
[1754325589054,0.5451,3668.7,3668.4,2.45504]
[1754325589356,3.2078,3669.0,3668.4,0.4576]
[1754325589357,3.1551,3668.5,3668.4,0.4576]
[1754325589654,3.1551,3668.2,3668.1,3.73149]
[1754325589851,0.505,3668.5,3668.4,0.54515]
[1754325590153,3.1551,3668.5,3668.4,3.73145]
[1754325590454,2.6501,3668.5,3668.4,3.73145]
[1754325591456,3.1551,3668.5,3668.4,3.73145]
[1754325591958,2.6501,3668.5,3668.4,3.73145]
[1754325592155,1.1443,3668.5,3668.4,3.73145]
[1754325592361,3.2078,3668.6,3668.4,3.73145]
[1754325592664,5.1828,3669.2,3669.1,0.9381]
[1754325592959,5.1828,3669.2,3669.1,3.1863]
[1754325592960,3.2078,3669.2,3669.1,3.1863]
[1754325594061,5.0775,3669.7,3669.1,3.2725]
[1754325594253,4.4932,3669.7,3669.6,0.4576]
[1754325594454,3.2078,3669.7,3669.6,1.3056]
[1754325594754,4.4932,3669.7,3669.6,3.1863]
[1754325595053,4.4932,3669.7,3669.6,0.4576]
[1754325595252,6.3629,3669.7,3669.6,0.4576]
[1754325596357,6.3629,3669.7,3669.6,1.7861]
[1754325596658,6.3629,3669.7,3669.6,3.1863]
[1754325598158,6.3629,3669.7,3669.6,2.479]
[1754325598360,6.3629,3669.7,3669.3,1.217]
[1754325598656,3.1551,3669.2,3669.1,3.02404]
[1754325598959,0.6896,3669.6,3669.4,0.545]
[1754325599260,3.1551,3669.6,3669.4,0.54499]
[1754325599460,3.1551,3669.5,3669.4,1.82139]
[1754325599662,3.1551,3669.5,3669.4,3.73129]
[1754325600055,2.4655,3669.5,3669.4,1.34089]
[1754325600255,3.1551,3669.5,3669.4,1.34089]
[1754325600460,3.1551,3669.5,3669.3,0.54501]
[1754325600662,3.1551,3669.2,3669.1,1.34093]
[1754325600861,2.6501,3669.2,3669.1,2.33113]
[1754325601158,3.1551,3669.2,3669.1,3.02403]
[1754325601358,3.1551,3669.2,3669.1,1.34093]
[1754325601660,3.1551,3669.2,3669.1,3.73133]
[1754325603358,2.6501,3669.2,3669.1,3.73133]
[1754325603557,4.4932,3669.7,3669.6,2.33107]
[1754325603754,3.2078,3669.7,3669.6,3.73127]
[1754325604262,0.6751,3670.0,3669.6,3.73127]
[1754325604263,2.6501,3670.0,3669.9,3.02393]
[1754325604460,2.6501,3670.0,3669.9,3.73123]
[1754325604956,3.1551,3670.0,3669.5,0.5097]
[1754325605164,1.2854,3669.6,3669.4,0.54499]
[1754325605361,0.4692,3669.5,3669.4,3.73129]
[1754325605660,3.8974,3669.8,3669.4,3.73129]
[1754325605661,6.3629,3669.8,3669.7,2.33106]
[1754325606866,6.3629,3669.8,3669.7,3.73126]
[1754325607365,6.3629,3669.8,3669.7,2.33106]
[1754325608566,6.3629,3669.8,3669.7,1.34086]
[1754325608765,6.3629,3669.8,3669.7,0.54496]
[1754325609758,6.3629,3669.8,3669.7,1.00256]
[1754325610259,6.3629,3669.8,3669.7,2.33986]
[1754325610563,6.3629,3669.8,3669.7,3.00356]
[1754325610765,6.3629,3669.8,3669.7,2.33986]
[1754325610965,6.3629,3669.8,3669.7,1.34086]
[1754325611166,3.1515,3669.6,3669.5,0.54498]
[1754325611855,0.54499,3669.5,3669.4,0.54499]
[1754325612060,3.69649,3669.5,3669.4,0.54499]
[1754325612769,3.1515,3669.5,3669.4,0.54499]
[1754325613865,3.1515,3669.5,3669.4,1.44009]
[1754325614057,3.1515,3669.5,3669.4,2.29109]
[1754325614660,3.1515,3669.5,3669.4,0.99709]
[1754325615267,3.1515,3669.5,3669.4,0.54499]
[1754325616167,3.1515,3669.5,3669.4,0.99709]
[1754325616470,3.1515,3669.5,3669.4,2.29109]
[1754325617170,3.1515,3669.5,3669.4,3.66359]
[1754325617871,5.862,3669.8,3669.7,3.66356]
[1754325618069,6.3593,3669.8,3669.7,3.66356]
[1754325618667,6.3593,3669.8,3669.7,2.95476]
[1754325618856,6.3593,3669.8,3669.7,2.29106]
[1754325619061,6.3593,3669.8,3669.7,0.54496]
[1754325621162,6.3593,3669.8,3669.7,0.99706]
[1754325621558,2.6542,3669.8,3669.7,3.66356]
[1754325621856,3.1515,3670.1,3670.0,3.66351]
[1754325622063,4.8365,3670.2,3670.1,0.6637]
[1754325622369,0.6957,3670.5,3670.4,3.66345]
[1754325622566,1.9438,3670.5,3670.4,3.66345]
[1754325622760,3.1515,3670.5,3670.4,0.54485]